Cogmind - Beta 16.1 @@@ ROGUE MODE // 2026.04.22 @ 21:01:54 Player: Ammie Result: Destroyed by L-31 Rogue with Katana Performance ------------- Evolutions (1) 500 Regions Visited (6) 1200 Robots Destroyed (75) 375 Value Destroyed (1971) 1971 Prototype IDs (42) 840 Alien Tech Used (0) 0 Bonus (362) 362 TOTAL SCORE: 5248 Bonus ------- High Alert Combat Kills 41 Follower Combat Kills 21 Aligned with FarCom 300 Cogmind --------- Core Integrity 0/400 Matter 202/300 Energy 264/280 System Corruption 10% Temperature Cool (79) Movement Core (850) Ox16 Location -8/Mines Parts ------- > --- POWER (1) -------- Cooled Ion Engine > --- PROPULSION (3) --- (None) > --- UTILITY (3) ------ High-capacity Storage Unit Hacking Suite System Shield > --- WEAPON (2) ------- Shock Rifle > --- INVENTORY (20) --- Improved Ion Engine Improved Flight Unit Improved Flight Unit Improved Flight Unit Scrap Suit Huge Storage Unit Modified TNC System Shield System Shield System Shield Improved EM Shotgun Shock Rifle Enhanced Autogun Rocket Launcher Datajack Peak State ------------ > --- POWER ------------ Cooled Ion Engine > --- PROPULSION ------- Light Treads Light Treads Light Treads > --- UTILITY ---------- Improved Heat Sink High-capacity Storage Unit Hacking Suite > --- WEAPON ----------- Improved EM Shotgun Shock Rifle > --- INVENTORY -------- Improved Ion Engine Cooled Ion Engine Light Treads Light Treads Improved Flight Unit Improved Flight Unit Improved Flight Unit Improved Flight Unit Scrap Suit Huge Storage Unit System Shield System Shield Shock Rifle Shock Rifle Enhanced Autogun Enhanced Autogun Rocket Launcher Datajack [Rating: 24] Favorites ----------- Power Cooled Ion Engine Engine Cooled Ion Engine Propulsion Light Treads Treads Light Treads Leg Aluminum Leg Flight Unit Improved Flight Unit Utility High-capacity Storage Unit Device Improved Heat Sink Storage High-capacity Storage Unit Processor Targeting Computer Hackware Hacking Suite Protection Medium Armor Plating Weapon Light Cannon Energy Gun Shock Rifle Energy Cannon Advanced Beam Cannon Ballistic Gun Assault Rifle Ballistic Cannon Light Cannon Launcher Rocket Launcher Special Melee Weapon Datajack Build | -11 -10 -10 -9 -9 -9 -8 ------- Run | Yrd Mat Min Mat Min Exi Min Slots Evolved 2 | . . . 2 . . . Power . | . . . . . . . Propulsion 1 | . . . 1 . . . Utility 1 | . . . 1 . . . Weapon . | . . . . . . . Parts Attached 53 | 7 17 . 22 6 1 . Power 6 | 1 2 . 2 1 . . Engine 6 | 1 2 . 2 1 . . Core . | . . . . . . . Reactor . | . . . . . . . Propulsion 17 | 2 7 . 8 . . . Treads 13 | . 6 . 7 . . . Leg 3 | 2 1 . . . . . Wheel . | . . . . . . . Hover . | . . . . . . . Flight 1 | . . . 1 . . . Utility 13 | 1 5 . 6 1 . . Device 3 | . . . 3 . . . Storage 6 | 1 3 . 2 . . . Processor 1 | . 1 . . . . . Hackware 2 | . . . 1 1 . . Protection 1 | . 1 . . . . . Artifact . | . . . . . . . Weapon 17 | 3 3 . 6 4 1 . Energy Gun 7 | 1 . . 3 3 . . Energy Cannon 1 | . 1 . . . . . Ballistic Gun 5 | 2 1 . 2 . . . Ballistic Cannon 2 | . 1 . 1 . . . Launcher 1 | . . . . 1 . . Special Weapon . | . . . . . . . Impact Weapon . | . . . . . . . Slashing Weapon . | . . . . . . . Piercing Weapon . | . . . . . . . Special Melee Weapon 1 | . . . . . 1 . Unidentified Prototypes 5 | . 1 . 4 . . . Corrupted Parts 1 | . . . 1 . . . System Corruption 4 | . . . 4 . . . Parts Lost 14 | . 1 . 4 7 . 2 Power 1 | . . . . 1 . . Propulsion 6 | . . . 2 3 . 1 Utility 4 | . 1 . 2 1 . . Weapon 3 | . . . . 2 . 1 Highest Loss Streak 6 | . 1 . 2 6 . 2 To Critical Strikes . | . . . . . . . Average Backups 13 | 2 11 14 16 14 14 15 Power 1 | . 2 2 2 1 1 1 Propulsion 3 | . 2 4 5 3 3 3 Utility 3 | . 2 3 3 5 5 6 Weapon 4 | . 4 3 3 4 4 4 Tool/Special . | . . . . . . . Unused Backups 21 | . 2 1 9 . . 9 Power 2 | . . . 2 . . . Propulsion 3 | . . . 1 . . 2 Utility 6 | . . . 1 . . 5 Weapon 10 | . 2 1 5 . . 2 Tool/Special . | . . . . . . . Average Slot Usage (%) 96 | . 99 100 98 88 88 84 Engine 12 | . 14 14 11 10 11 11 Treads 28 | . 27 28 32 24 22 18 Device 4 | . . . 13 . . . Storage 12 | . 14 14 11 11 11 11 Processor 3 | . 10 . . . . . Hackware 7 | . . . 5 20 22 22 Protection 2 | . 3 14 2 . . . Energy Gun 9 | . . . 12 20 12 18 Ballistic Gun 7 | . 15 14 4 . . . Ballistic Cannon 6 | . 12 14 4 . . . Special Melee Weapon 1 | . . . . . 9 3 Peak Build Rating 24 | 6 11 11 24 24 22 22 Average Rating 15 | 4 8 10 18 21 20 21 On Entrance 13 | . 6 11 11 24 22 21 Avg Prop Armor Cover (%) 7 | . . . 7 . . . Naked Turns . | . . . . . . . Heaviest Build 90 | 12 90 38 57 56 54 54 Greatest Support 60 | 20 40 40 60 60 40 40 Greatest Overweight (x) 2 | 2 2 . 1 1 1 2 Average Overweight (x) . | . . . . . 1 1 Largest Inventory Capacity 25 | 8 25 15 20 20 20 20 Average Capacity 19 | 7 20 15 18 20 20 20 Most Carried 20 | 4 16 15 20 20 16 16 Average Carried 14 | 2 11 14 17 15 15 16 Final Capacity 20 | 8 15 15 20 20 20 20 Final Carried 20 | 4 15 15 20 15 16 16 Class Distribution -------------------- 70% | Mutant 24% | Hacker-Mutant 4% | Scavenger-Mutant Dominant Class ---------------- Mutant | -10/Materials Mutant | -10/Mines Mutant | -9/Materials Hacker-Mutant | -9/Mines Hacker-Mutant | -9/Exiles Hacker-Mutant | -8/Mines Resources | -11 -10 -10 -9 -9 -9 -8 ----------- Run | Yrd Mat Min Mat Min Exi Min Matter Collected 2017 | 237 662 4 959 155 . . Remotely . | . . . . . . . Salvage Created 2290 | . 762 . 1454 74 . . Parts 160 | . 44 . 108 8 . . Haulers Intercepted 8 | . 2 . 6 . . . Recyclers Shooed 1 | . . . . 1 . . Parts Field Recycled . | . . . . . . . Retrieved Matter . | . . . . . . . Parts Self-Destructed . | . . . . . . . Prevented . | . . . . . . . Parts Restored . | . . . . . . . Kills | -11 -10 -10 -9 -9 -9 -8 ------- Run | Yrd Mat Min Mat Min Exi Min Combat Hostiles Destroyed 50 | . 14 . 33 3 . . Guns 33 | . 6 . 24 3 . . Cannons 16 | . 8 . 8 . . . AOE 1 | . . . 1 . . . Classes Destroyed 9 | . 6 . 3 . . . Worker 7 | . 2 . 4 1 . . Hauler 8 | . 2 . 6 . . . Recycler 1 | . 1 . . . . . Operator 4 | . 2 . 2 . . . Watcher 5 | . 1 . 4 . . . Swarmer 10 | . . . 7 3 . . Grunt 32 | . 14 . 18 . . . Duelist 1 | . . . 1 . . . Sentry 7 | . . . 7 . . . Best Kill Streak 7 | . 4 . 7 3 . . Combat Bots Only 5 | . 4 . 5 3 . . Max Kills in Single Turn 2 | . 1 . 2 2 . . Gunslinging 1 | . . . . 1 . . Exploded 1 | . . . 1 . . . Melee . | . . . . . . . Uniques/NPCs Destroyed . | . . . . . . . Combat | -11 -10 -10 -9 -9 -9 -8 -------- Run | Yrd Mat Min Mat Min Exi Min Hostile Shots Fired 252 | . 70 . 135 27 . 20 Missed 58 | . 21 . 26 7 . 4 Hits 194 | . 49 . 109 20 . 16 Melee 8 | . . . 2 . . 6 Projectile 186 | . 49 . 107 20 . 10 AOE 14 | . . . . 14 . . Critical Strikes 6 | . 1 . 4 . . 1 Damage Taken 3176 | . 581 . 1375 858 . 362 Core 524 | . 102 . 185 66 . 171 Absorbed by Shields . | . . . . . . . Core Remaining (%) 79 | 100 . 59 . . . . Volleys Fired 185 | . 55 1 123 2 . 4 Largest 2 | . 2 2 2 2 . 2 Hottest 100 | . 53 53 90 100 . 100 Shots Fired 350 | . 110 3 224 6 . 7 Gun 229 | . 62 1 153 6 . 7 Cannon 121 | . 48 2 71 . . . Launcher . | . . . . . . . Special . | . . . . . . . Kinetic 255 | . 110 3 142 . . . Thermal . | . . . . . . . Explosive . | . . . . . . . Electromagnetic 95 | . . . 82 6 . 7 Robot Hit Streak 16 | . 9 6 16 6 . 7 Robot Miss Streak 6 | . 3 . 6 . . 2 Penetration Max . | . . . . . . . Secondary Targets 2 | . 1 . . 1 . . Max Gunslinging Chain 1 | . 1 . . 1 . . Shots Hit Robots 231 | . 65 2 148 5 7 4 Core Hits 113 | . 35 . 73 4 . 1 Critical Kills . | . . . . . . . Critical Parts Destroyed 1 | . . . 1 . . . Critical Strikes 6 | . 1 . 4 1 . . Destroy 1 | . . . 1 . . . Blast 4 | . 1 . 3 . . . Corrupt 1 | . . . . 1 . . Melee Attacks 7 | . . . . . 7 . Impact . | . . . . . . . Slashing . | . . . . . . . Piercing . | . . . . . . . Sneak Attacks 6 | . . . . . 6 . Combat Hostiles . | . . . . . . . Follow-up Attacks . | . . . . . . . Damage Inflicted 4137 | . 1014 31 2939 92 . 61 Guns 2170 | . 469 13 1546 81 . 61 Cannons 1412 | . 545 18 849 . . . Explosions 544 | . . . 544 . . . Melee . | . . . . . . . Ramming 11 | . . . . 11 . . Kinetic 2667 | . 1014 31 1622 . . . Thermal 544 | . . . 544 . . . Explosive . | . . . . . . . Electromagnetic 915 | . . . 773 81 . 61 Impact . | . . . . . . . Slashing . | . . . . . . . Piercing . | . . . . . . . Highest Corruption 10 | . 3 3 10 10 10 10 Average Corruption 6 | . 3 3 5 10 10 10 Corruption Purged . | . . . . . . . Corruption Blocked . | . . . . . . . Effects 155 | . 36 4 52 33 29 1 Message Errors 39 | . 10 1 11 6 11 . Matter Fused 44 | . 8 1 13 12 10 . Heat Flow Errors 20 | . 5 . 5 6 4 . Energy Discharges 12 | . 3 . 5 2 2 . Data Loss (minor) 22 | . 5 1 11 3 2 . Data Loss (major) 5 | . 3 . 1 1 . . Misfires 5 | . 1 1 1 2 . . Alerts 2 | . . . 1 1 . . Misdirections 2 | . . . 1 . . 1 Weapon Failures 4 | . 1 . 3 . . . Overload Shots . | . . . . . . . Overflow Damage 68 | . . . 64 4 . . Projectiles 1 | . . . 1 . . . Explosions 67 | . . . 63 4 . . Melee . | . . . . . . . Knockbacks 5 | . . . 5 . . . Impact . | . . . . . . . Kinetic 3 | . . . 3 . . . Secondary 2 | . . . 2 . . . Self-Inflicted Damage 236 | . . . 48 188 . . Shots 6 | . . . 1 5 . . Rammed 2 | . 1 . . 1 . . Targets Rammed 2 | . 1 . . 1 . . Kicked . | . . . . . . . Crushed . | . . . . . . . Highest Temperature 273 | . 258 18 258 246 273 93 Average Temperature 71 | . 82 9 49 77 106 56 Received Heat Transfer 969 | . 348 . 531 . . 90 Siege Activations . | . . . . . . . Martial Activations . | . . . . . . . Shielding Activations . | . . . . . . . Robots Disrupted . | . . . . . . . Combat Hostiles . | . . . . . . . Robots Corrupted 1 | . . . 1 . . . Combat Hostiles . | . . . . . . . Parts Fried 4 | . . . 4 . . . Impact Corruptions . | . . . . . . . Robots Melted . | . . . . . . . Combat Hostiles . | . . . . . . . Parts Melted . | . . . . . . . Heat Transferred 400 | . . . 400 . . . Parts Sabotaged . | . . . . . . . Parts Stolen . | . . . . . . . Parts Stripped . | . . . . . . . Power Chain Reactions 2 | . . . 2 . . . Alert | -11 -10 -10 -9 -9 -9 -8 ------- Run | Yrd Mat Min Mat Min Exi Min Maximum Alert Level 2 | . . . 2 1 . . Low Security (%) 75 | 100 100 100 46 80 . 100 Level 1 13 | . . . 27 19 . . Level 2 10 | . . . 26 . . . Level 3 . | . . . . . . . Level 4 . | . . . . . . . Level 5 . | . . . . . . . High Security . | . . . . . . . Max Security . | . . . . . . . Peak Influence 602 | . 94 . 602 261 . . Initial 222 | . . . . 222 . . Average 135 | . 21 . 266 141 . . Influence Increases 1912 | . 449 . 1138 325 . . Destroy 0b10 Robot/C 1060 | . 280 . 660 120 . . Destroy 0b10 Robot/NC 125 | . 40 . 80 5 . . Destroy Leader 276 | . 76 . 180 20 . . Allied During Kill 11 | . . . . 11 . . Successful Hack 39 | . 19 . 16 4 . . Disable Machine 255 | . 15 . 105 135 . . Destroy Structure 101 | . 4 . 67 30 . . Lose Combat Pursuer 45 | . 15 . 30 . . . Influence Decreases 1912 | . 449 . 568 834 61 . Entered New Map 409 | . . . . 348 61 . Time Decay 1383 | . 439 . 528 416 . . Lost Part 120 | . 10 . 40 70 . . Squads Dispatched 10 | . 4 . 6 . . . Investigation 4 | . 2 . 2 . . . Extermination . | . . . . . . . Reinforcement 4 | . 2 . 2 . . . Assault 2 | . . . 2 . . . Garrison . | . . . . . . . Intercept . | . . . . . . . Searches Triggered . | . . . . . . . Construction Impeded . | . . . . . . . Haulers Reinforced . | . . . . . . . Active Scanning Responses . | . . . . . . . Cargo Convoy Interrupts . | . . . . . . . Stealth | -11 -10 -10 -9 -9 -9 -8 --------- Run | Yrd Mat Min Mat Min Exi Min Distress Signals 5 | . 2 . 3 . . . Communications Jammed . | . . . . . . . Distress Signals . | . . . . . . . Times Spotted 104 | . 20 . 53 28 . 3 Peak Tracking Total 21 | . 4 . 6 21 . 3 Tactical Retreats 4 | . 1 . 2 1 . . Traps | -11 -10 -10 -9 -9 -9 -8 ------- Run | Yrd Mat Min Mat Min Exi Min Traps Triggered 3 | . 1 . 2 . . . Indirectly . | . . . . . . . Trap Hack Attempts . | . . . . . . . Triggered . | . . . . . . . Disarmed . | . . . . . . . Reprogrammed . | . . . . . . . Reused . | . . . . . . . Traps Extracted . | . . . . . . . Installed . | . . . . . . . Triggered . | . . . . . . . Machines | -11 -10 -10 -9 -9 -9 -8 ---------- Run | Yrd Mat Min Mat Min Exi Min Machines Disabled 17 | . 1 . 7 9 . . Max in Single Turn 9 | . 1 . 2 9 . . Machines Repaired . | . . . . . . . Machines Dismantled . | . . . . . . . Machines Sabotaged . | . . . . . . . Overloaded Fab Kills . | . . . . . . . Hacking | -11 -10 -10 -9 -9 -9 -8 --------- Run | Yrd Mat Min Mat Min Exi Min Machines Accessed 16 | . 5 . 8 1 2 . Terminals 13 | . 5 . 7 1 . . Fabricators . | . . . . . . . Repair Stations 1 | . . . 1 . . . Recycling Units . | . . . . . . . Scanalyzers . | . . . . . . . Garrison Access . | . . . . . . . Total Hacks 31 | . 9 . 19 1 2 . Successful 18 | . 7 . 8 1 2 . Failed 13 | . 2 . 11 . . . Catastrophic 2 | . . . 2 . . . Database Lockouts . | . . . . . . . Manual 28 | . 9 . 16 2 1 . Terminals 26 | . 9 . 16 1 . . Fabricators . | . . . . . . . Repair Stations 3 | . . . 3 . . . Recycling Units . | . . . . . . . Scanalyzers . | . . . . . . . Garrison Access . | . . . . . . . Terminal Hacks 2 | . . . . . 2 . Record 1 | . . . . . 1 . Proto ID Catalog 1 | . . . . . 1 . Fabricator Hacks . | . . . . . . . Repair Station Hacks 1 | . . . 1 . . . Scan Component 1 | . . . 1 . . . Recycling Unit Hacks . | . . . . . . . Scanalyzer . | . . . . . . . Garrison Access Hacks . | . . . . . . . Unauthorized Hacks 15 | . 7 . 7 1 . . Terminals 15 | . 7 . 7 1 . . Botnet 11 | . 5 . 5 1 . . Operators 4 | . 2 . 2 . . . Fabricators . | . . . . . . . Repair Stations . | . . . . . . . Recycling Units . | . . . . . . . Scanalyzers . | . . . . . . . Garrison Access . | . . . . . . . Data Cores Recovered . | . . . . . . . Used . | . . . . . . . Hacking Detections 8 | . 1 . 6 1 . . Full Trace Events 1 | . . . 1 . . . Feedback Events . | . . . . . . . Feedback Blocked . | . . . . . . . Robot Schematics Acquired . | . . . . . . . Robots Built . | . . . . . . . Authchips . | . . . . . . . Time . | . . . . . . . Total Robot Build Rating . | . . . . . . . Part Schematics Acquired . | . . . . . . . Parts Built . | . . . . . . . Authchips . | . . . . . . . Time . | . . . . . . . Total Part Build Rating . | . . . . . . . Part Studies Acquired . | . . . . . . . Parts Repaired . | . . . . . . . Time . | . . . . . . . Parts Recycled . | . . . . . . . Recycled Matter . | . . . . . . . Retrieved Matter . | . . . . . . . Retrieved Components . | . . . . . . . Parts Scanalyzed . | . . . . . . . Part Schematics Acquired . | . . . . . . . Parts Damaged . | . . . . . . . Bothacking | -11 -10 -10 -9 -9 -9 -8 ------------ Run | Yrd Mat Min Mat Min Exi Min Used RIF Installer . | . . . . . . . Robots Hacked 4 | . . . . . 4 . Non-combat 3 | . . . . . 3 . Combat 1 | . . . . . 1 . Robot Hacks Applied 4 | . . . . . 4 . parse_system 4 | . . . . . 4 . Relay Couplers Released . | . . . . . . . Fabnet Peak Effective % . | . . . . . . . Robots Rewired . | . . . . . . . Allies Hacked . | . . . . . . . Hacks Repelled . | . . . . . . . Allies | -11 -10 -10 -9 -9 -9 -8 -------- Run | Yrd Mat Min Mat Min Exi Min Total Allies 3 | . . . . 3 . . Largest Group 3 | . . . . 3 2 2 Highest-Rated Group 40 | . . . . 40 32 32 Highest-Rated Ally 16 | . . . . 16 16 16 Total Orders . | . . . . . . . Ally Attacks 27 | . . . . 20 . 7 Total Damage 221 | . . . . 159 . 62 Kills 5 | . . . . 5 . . Allies Corrupted . | . . . . . . . Allies Melted . | . . . . . . . Turrets Deployed 1 | . . . . . 1 . Intel | -11 -10 -10 -9 -9 -9 -8 ------- Run | Yrd Mat Min Mat Min Exi Min Active Infowar (turns) 643 | . . . 643 . . . Seismic 643 | . . . 643 . . . Robot Analysis Total . | . . . . . . . Derelict Logs Recovered 1 | . . . . 1 . . Drone Launches . | . . . . . . . Drone Recoveries . | . . . . . . . Exploration | -11 -10 -10 -9 -9 -9 -8 ------------- Run | Yrd Mat Min Mat Min Exi Min Turns Passed 6936 | 64 2418 228 2419 1007 774 26 Spaces Moved 3119 | 44 961 133 1215 444 317 5 Core 8 | 8 . . . . . . Treads 3021 | . 907 133 1215 444 317 5 Legs 90 | 36 54 . . . . . Wheels . | . . . . . . . Hover . | . . . . . . . Flight . | . . . . . . . Fastest Speed 50 | 50 120 160 160 160 240 240 Average Speed 192 | 115 214 160 160 214 240 256 Slowest Speed 320 | 150 320 160 240 240 240 320 Overloaded Moves . | . . . . . . . Propulsion Burnouts . | . . . . . . . Robots Hopped . | . . . . . . . Potential Cave-ins . | . . . . . . . Cave-ins Triggered . | . . . . . . . Exploration Rate (%) 52 | 3 98 40 73 79 70 6 Regions Visited 6 Branch Regions 4 Pre-discovered Areas 2 | . . . . 1 1 . Known Exits Taken . | . . . . . . . Unknown Exits Taken 6 | 1 1 1 1 1 1 . Scrap Searched 1 | . . . . 1 . . Spaces Dug . | . . . . . . . Terrain Destroyed 94 | . . . 64 30 . . Melee . | . . . . . . . Projectile . | . . . . . . . AOE 94 | . . . 64 30 . . Terrain Rammed . | . . . . . . . Walls Destroyed . | . . . . . . . Machines Disabled . | . . . . . . . Actions | -11 -10 -10 -9 -9 -9 -8 --------- Run | Yrd Mat Min Mat Min Exi Min Total 3709 | 54 1204 148 1471 494 327 11 Wait 247 | . 141 12 54 39 . 1 Move 3113 | 43 960 132 1214 443 316 5 Hop . | . . . . . . . Pick Up 48 | 4 17 1 24 1 1 . Fast Attach 7 | 6 1 . . . . . Attach 16 | . 3 . 7 6 . . Detach . | . . . . . . . Swap 43 | 1 15 . 23 2 1 1 Drop 39 | . 11 2 26 . . . Fire 185 | . 55 1 123 2 . 4 Melee 7 | . . . . . 7 . Ram . | . . . . . . . Kick . | . . . . . . . Crush 2 | . 1 . . 1 . . Escape Stasis . | . . . . . . . Rewire 2 | . . . . . 2 . Trap . | . . . . . . . Miscellaneous . | . . . . . . . Route ------- -11/Scrapyard -10/Materials (discovered 5 exits: *Mat x3 / [*Min] / [*Sub]) -10/Mines -9/Materials (discovered 3 exits: [*Mat] / *Min x2) -9/Mines (discovered 2 exits: [*Mat] / *Exi) -9/Exiles -8/Mines History --------- Turn | Location | Event 28 | -11/Scrapyard | Discovered new exit (range 15) 65 | -11/Scrapyard | Entered Materials 325 | -10/Materials | Build established: Mutant 559 | -10/Materials | Discovered new exit (range 8) 737 | -10/Materials | Discovered new exit (range 15) 1018 | -10/Materials | Discovered new exit (range 10) 1165 | -10/Materials | Derelicts attacked the area 1660 | -10/Materials | Discovered new exit (range 6) 1981 | -10/Materials | Discovered new exit (range 12) 2483 | -10/Materials | Entered Mines 2511 | -10/Mines | Met a Derelict bent on vengeance 2579 | -10/Mines | Found a Scrap Suit stashed away for nefarious purposes 2585 | -10/Mines | Found Scrap Suit 2683 | -10/Mines | Discovered new exit (range 6) 2711 | -10/Mines | Entered Materials 2711 | -9/Materials | Evolved 2 slots: Propulsion x1, Utility x1 2765 | -9/Materials | Discovered new exit (range 15) 3142 | -9/Materials | Discovered new exit (range 16) 4025 | -9/Materials | System corruption reached 10% 4615 | -9/Materials | Discovered new exit (range 15) 5111 | -9/Materials | First assault squad dispatched 5130 | -9/Materials | Entered Mines 5158 | -9/Mines | Build established: Scavenger-Mutant 5170 | -9/Mines | Assembled infested the area 5175 | -9/Mines | Assisted by a Guerilla fighting off Assembled 5220 | -9/Mines | Core integrity fell below 50% 5262 | -9/Mines | Lost 6 parts (1p2n1u2w) 5311 | -9/Mines | Received a Rocket Launcher from a helpful Derelict 5318 | -9/Mines | Learned 4 Materials zone layouts 5471 | -9/Mines | Assisted by bots powering up and referring to "LRC-V3" 5487 | -9/Mines | Learned location of Storage (-9) 5548 | -9/Mines | Build established: Hacker-Mutant 5890 | -9/Mines | Discovered new exit (range 11) 6125 | -9/Mines | Deemed a non-threat by the Exiles lab entrance 6128 | -9/Mines | Discovered new exit (range 5) 6137 | -9/Mines | Entered Exiles 6137 | -9/Exiles | Accompanied by 2 allies 6195 | -9/Exiles | Met 8R-AWN 6241 | -9/Exiles | Met EX-HEX 6444 | -9/Exiles | Met EX-DEC 6512 | -9/Exiles | Learned location of Zion (-6) 6570 | -9/Exiles | Met EX-BIN 6598 | -9/Exiles | Aligned with FarCom system 6600 | -9/Exiles | Given EX-Vault access code 6660 | -9/Exiles | Opened EX-Vault 6673 | -9/Exiles | DAS Turret deployed 6689 | -9/Exiles | Found Modified TNC 6736 | -9/Exiles | Warned to stay clear of 0b10 Research branches 6887 | -9/Exiles | Discovered new exit (range 11) 6911 | -9/Exiles | Left Exiles lab with Modified TNC 6911 | -9/Exiles | Entered Mines 6911 | -8/Mines | Accompanied by 2 allies 6926 | -8/Mines | Core integrity fell below 20% 6937 | -8/Mines | Destroyed by L-31 Rogue with Katana Last Messages --------------- 06738_ 2A0RXG0/P5FV7K&R1L%Z EX-BIN: And don't even think about spreading that code around. We're gonna change it right after you leave. Most certainly not to something like 1234 which I did last time as a little joke and some thief managed to sneak in here and steal a few of HEX's prototypes. 06773_ System corrupted: Heat flow error (+101). 06814_ |GF,K,T3K<2YWXX